bitfinex/quotes_BTCUSD_20240811
["timestamp","ask_amount","ask_price","bid_price","bid_amount"]
[1723361290030,2.72050535,61219.0,61218.0,0.009141]
[1723361291015,2.72060733,61219.0,61218.0,0.009141]
[1723361293567,2.70884922,61219.0,61218.0,0.009141]
[1723361293787,2.72070778,61219.0,61218.0,0.009141]
[1723361294309,2.79870778,61219.0,61218.0,0.009141]
[1723361294539,3.08939478,61219.0,61218.0,0.009141]
[1723361294814,3.92441053,61219.0,61218.0,0.009141]
[1723361295061,0.493075,61211.0,61210.0,0.0009152]
[1723361295318,2.3643218,61211.0,61210.0,0.0009152]
[1723361295565,0.343176,61193.0,61190.0,0.1451]
[1723361295786,1.00778177,61193.0,61190.0,0.1451]
[1723361296041,1.00778177,61193.0,61192.0,0.01230439]
[1723361296305,1.00778177,61193.0,61192.0,0.009152]
[1723361297250,0.44067812,61193.0,61192.0,0.43246092]
[1723361297497,0.12209165,61196.0,61192.0,0.43246092]
[1723361297498,0.0684,61194.0,61193.0,0.176492]
[1723361297715,0.18279,61194.0,61193.0,0.1451]
[1723361297938,0.18279,61194.0,61193.0,0.14825198]
[1723361297939,0.41157,61194.0,61193.0,0.14825198]
[1723361298160,0.18279,61194.0,61193.0,0.14825198]
[1723361298440,0.0684,61194.0,61193.0,0.14825198]
[1723361299870,0.0714,61194.0,61193.0,0.14825198]
[1723361300105,0.0754,61194.0,61193.0,0.26264398]
[1723361300594,0.0754,61194.0,61193.0,0.14825198]
[1723361300827,0.0724,61194.0,61193.0,0.14825198]
[1723361301337,0.0694,61194.0,61193.0,0.14825198]
[1723361301574,0.0704,61194.0,61193.0,0.14825198]
[1723361303197,0.0694,61194.0,61193.0,0.14825198]
[1723361303887,0.0684,61194.0,61193.0,0.14825198]
[1723361304109,0.0694,61194.0,61193.0,0.14825198]
[1723361304325,0.0694,61194.0,61193.0,0.26264398]
[1723361305019,0.0684,61194.0,61193.0,0.14825198]
[1723361306108,0.0684,61194.0,61193.0,0.49142798]
[1723361306347,0.0694,61194.0,61193.0,0.26264398]
[1723361307001,0.0684,61194.0,61193.0,0.26264398]
[1723361307213,0.0684,61194.0,61193.0,0.26364398]
[1723361307461,0.0684,61194.0,61193.0,0.14925198]
[1723361307679,0.0684,61194.0,61193.0,0.14825198]
[1723361307892,0.0684,61194.0,61193.0,0.15895008]
[1723361308045,0.0684,61194.0,61193.0,0.16095008]
[1723361308943,0.0684,61194.0,61193.0,0.15125198]
[1723361309534,0.0684,61194.0,61193.0,0.26564398]
[1723361311347,0.0684,61194.0,61193.0,0.15125198]
[1723361312849,0.0684,61194.0,61193.0,0.26564398]
[1723361313547,0.0684,61194.0,61193.0,0.15125198]
[1723361315506,0.0684,61194.0,61193.0,0.26564398]
[1723361316646,0.0684,61194.0,61193.0,0.15125198]
[1723361317054,0.0684,61194.0,61193.0,0.26564398]
[1723361318276,0.0684,61194.0,61193.0,0.15125198]
[1723361319058,0.18279,61194.0,61193.0,0.15125198]
[1723361319295,0.18279,61194.0,61193.0,0.14925198]
[1723361319517,0.0684,61194.0,61193.0,0.14925198]
[1723361319693,0.0684,61194.0,61193.0,0.14825198]
[1723361319850,0.18279,61194.0,61193.0,0.14825198]
[1723361320058,0.41257,61194.0,61193.0,0.14825198]
[1723361320255,0.41157,61194.0,61193.0,0.14825198]
[1723361320451,0.41557,61194.0,61193.0,0.14825198]
[1723361320660,0.42157,61194.0,61193.0,0.14825198]
[1723361320860,0.41157,61194.0,61193.0,0.14825198]
[1723361321263,0.42157,61194.0,61193.0,0.14825198]
[1723361322517,0.41757,61194.0,61193.0,0.14825198]
[1723361322733,0.41665072,61194.0,61193.0,0.14825198]
[1723361322871,0.42365072,61194.0,61193.0,0.14825198]
[1723361323882,0.19487072,61194.0,61193.0,0.14825198]
[1723361325564,0.42065072,61194.0,61193.0,0.14825198]
[1723361325799,1.02621072,61194.0,61193.0,0.00315198]
[1723361325943,1.02621072,61194.0,61192.0,0.009152]
[1723361325944,0.57196,61193.0,61192.0,0.009152]
[1723361326176,0.57704072,61193.0,61192.0,0.009152]
[1723361326357,0.6502671,61193.0,61192.0,0.009152]
[1723361327225,0.65026634,61193.0,61192.0,0.009152]
[1723361327441,2.11764482,61193.0,61192.0,0.009152]
[1723361327647,2.31139365,61193.0,61192.0,0.009152]
[1723361328042,1.78539365,61193.0,61192.0,0.009152]
[1723361328191,1.78139365,61193.0,61192.0,0.009152]
[1723361328622,1.77939365,61193.0,61192.0,0.009152]
[1723361329028,1.61900965,61193.0,61192.0,0.009152]
[1723361329618,1.63000965,61193.0,61192.0,0.009152]
[1723361329825,1.62200965,61193.0,61192.0,0.009152]
[1723361330049,1.61905252,61193.0,61192.0,0.009152]
[1723361330395,1.64505252,61193.0,61192.0,0.009152]
[1723361330608,1.64535969,61193.0,61192.0,0.009152]
[1723361332291,1.49735868,61193.0,61192.0,0.009152]
[1723361332699,1.49735806,61193.0,61192.0,0.009152]
[1723361334558,1.49735747,61193.0,61192.0,0.009152]
[1723361334774,1.49058489,61193.0,61192.0,0.009152]
[1723361335801,1.49058432,61193.0,61192.0,0.009152]
[1723361336079,2.25058432,61193.0,61192.0,0.009152]
[1723361336535,2.0867694,61193.0,61192.0,0.009152]
[1723361337012,2.14471686,61193.0,61192.0,0.009152]
[1723361337223,2.12032235,61193.0,61192.0,0.009152]
[1723361337442,2.02273777,61193.0,61192.0,0.009152]
[1723361337665,2.12032235,61193.0,61192.0,0.009152]
[1723361338334,2.11524292,61193.0,61192.0,0.009152]
[1723361338542,2.12032273,61193.0,61192.0,0.009152]
[1723361338763,2.14471724,61193.0,61192.0,0.009152]
[1723361339023,2.02273804,61193.0,61192.0,0.009152]
[1723361339233,2.29277077,61193.0,61192.0,0.009152]
[1723361339448,2.17071736,61193.0,61192.0,0.009152]
[1723361340235,2.33453228,61193.0,61192.0,0.009152]
[1723361341251,2.33453232,61193.0,61192.0,0.009152]
[1723361342637,0.7367494,61193.0,61192.0,0.152752]
[1723361342844,0.44265574,61193.0,61192.0,0.15600405]
[1723361343050,0.44265574,61193.0,61192.0,0.152752]
[1723361343249,0.8051235,61193.0,61192.0,0.15600405]
[1723361343513,0.44265574,61193.0,61192.0,0.15600405]
[1723361343713,0.44265638,61193.0,61192.0,0.15600405]
[1723361344188,0.42865638,61193.0,61192.0,0.15600405]
[1723361344364,0.7911242,61193.0,61192.0,0.152752]
[1723361344606,0.77404382,61193.0,61192.0,0.152752]
[1723361344817,0.64544043,61193.0,61192.0,0.152752]
[1723361345026,1.10558056,61193.0,61192.0,0.152752]
[1723361345233,1.10558056,61193.0,61192.0,0.010152]
[1723361345380,1.13999299,61193.0,61192.0,0.010152]
[1723361345595,1.14701153,61193.0,61192.0,0.010152]
[1723361345796,1.00790719,61193.0,61192.0,0.009152]
[1723361345976,1.08970719,61193.0,61192.0,0.010152]
[1723361346170,1.10470719,61193.0,61192.0,0.010152]
[1723361346421,1.09670719,61193.0,61192.0,0.010152]
[1723361346588,1.08462676,61193.0,61192.0,0.009152]
[1723361346809,1.09870698,61193.0,61192.0,0.009152]
[1723361347008,1.08970698,61193.0,61192.0,0.009152]
[1723361347442,1.10270698,61193.0,61192.0,0.009152]
[1723361347815,1.11170698,61193.0,61192.0,0.010152]
[1723361348392,1.02090698,61193.0,61192.0,0.009152]
[1723361348593,1.02090698,61193.0,61192.0,0.086352]
[1723361349215,1.01890706,61193.0,61192.0,0.087352]
[1723361349668,1.00790706,61193.0,61192.0,0.009152]
[1723361349822,1.16910706,61193.0,61192.0,0.009152]
[1723361350387,1.00790706,61193.0,61192.0,0.009152]
[1723361350519,1.00790701,61193.0,61192.0,0.009152]
[1723361350721,1.02090701,61193.0,61192.0,0.009152]
[1723361351291,1.03190701,61193.0,61192.0,0.010152]
[1723361351611,1.03192874,61193.0,61192.0,0.010152]
[1723361351816,1.02092874,61193.0,61192.0,0.009152]
[1723361352172,1.03192874,61193.0,61192.0,0.010152]
[1723361352404,1.03192886,61193.0,61192.0,0.010152]
[1723361354315,1.26071286,61193.0,61192.0,0.010152]
[1723361354638,1.10306412,61193.0,61192.0,0.010152]
[1723361356248,1.10306736,61193.0,61192.0,0.010152]
[1723361356439,1.10304839,61193.0,61192.0,0.010152]
[1723361356855,1.33183239,61193.0,61192.0,0.010152]
[1723361357075,1.10304839,61193.0,61192.0,0.010152]
[1723361357848,1.33183239,61193.0,61192.0,0.010152]
[1723361358619,1.33183603,61193.0,61192.0,0.010152]
[1723361358791,1.10305203,61193.0,61192.0,0.010152]
[1723361359347,1.10305203,61193.0,61192.0,0.153752]
[1723361360350,1.10307652,61193.0,61192.0,0.153752]
[1723361360780,1.03193079,61193.0,61192.0,0.153752]
[1723361360976,1.10309091,61193.0,61192.0,0.153752]
[1723361362703,1.09631618,61193.0,61192.0,0.153752]
[1723361363082,1.11781618,61193.0,61192.0,0.153752]
[1723361363284,1.12459118,61193.0,61192.0,0.153752]
[1723361363540,1.05343079,61193.0,61192.0,0.153752]
[1723361363738,1.1178679,61193.0,61192.0,0.153752]
[1723361363945,1.05343079,61193.0,61192.0,0.153752]
[1723361364170,1.05343107,61193.0,61192.0,0.153752]
[1723361364374,1.12464326,61193.0,61192.0,0.153752]
[1723361364575,1.05343107,61193.0,61192.0,0.153752]
[1723361364934,1.1178572,61193.0,61192.0,0.153752]
[1723361365130,1.05343107,61193.0,61192.0,0.153752]
[1723361365507,1.11786034,61193.0,61192.0,0.153752]
[1723361365678,1.12463571,61193.0,61192.0,0.153752]
[1723361365928,1.11786034,61193.0,61192.0,0.153752]
[1723361367491,1.12463569,61193.0,61192.0,0.153752]
[1723361367699,1.11277901,61193.0,61192.0,0.153752]
[1723361367872,1.11786056,61193.0,61192.0,0.153752]
[1723361368299,1.12463609,61193.0,61192.0,0.153752]
[1723361368505,1.26448497,61193.0,61192.0,0.153752]
[1723361368704,1.11784444,61193.0,61192.0,0.153752]
[1723361369117,1.12461897,61193.0,61192.0,0.153752]
[1723361369912,1.11784444,61193.0,61192.0,0.153752]
[1723361370113,1.12461912,61193.0,61192.0,0.153752]
[1723361370508,0.7621455,61193.0,61192.0,0.153752]
[1723361370710,0.75537082,61193.0,61192.0,0.153752]
[1723361371113,0.75028927,61193.0,61192.0,0.153752]
[1723361371320,0.75537031,61193.0,61192.0,0.153752]
[1723361371798,0.75552095,61193.0,61192.0,0.153752]
[1723361372199,0.76229564,61193.0,61192.0,0.153752]
[1723361372443,0.75552095,61193.0,61192.0,0.153752]
[1723361373049,0.76229553,61193.0,61192.0,0.153752]
[1723361373260,0.75552095,61193.0,61192.0,0.153752]
[1723361373578,0.76229554,61193.0,61192.0,0.153752]
[1723361373943,0.75552095,61193.0,61192.0,0.153752]
[1723361374380,0.7622955,61193.0,61192.0,0.153752]
[1723361374944,0.7624215,61193.0,61192.0,0.153752]
[1723361375141,1.12489875,61193.0,61192.0,0.153752]
[1723361375358,1.6323669,61193.0,61192.0,0.153752]
[1723361377726,1.62040456,61193.0,61192.0,0.153752]
[1723361377928,1.63225729,61193.0,61192.0,0.153752]
[1723361378507,1.63225608,61193.0,61192.0,0.153752]
[1723361378916,1.16791518,61193.0,61192.0,0.153752]
[1723361379118,0.97150082,61193.0,61192.0,0.153752]
[1723361379317,0.82463292,61193.0,61192.0,0.153752]
[1723361379536,0.59584892,61193.0,61192.0,0.15700515]
[1723361379672,0.81363292,61193.0,61192.0,0.15600515]
[1723361379874,0.80063292,61193.0,61192.0,0.15600515]
[1723361380080,0.80963292,61193.0,61192.0,0.15700515]
[1723361380609,0.80063292,61193.0,61192.0,0.15600515]
[1723361381132,0.80763292,61193.0,61192.0,0.15700515]
[1723361381354,0.81663292,61193.0,61192.0,0.15700515]
[1723361381545,0.80763292,61193.0,61192.0,0.15700515]
[1723361381952,0.81563292,61193.0,61192.0,0.15700515]
[1723361382123,0.81563338,61193.0,61192.0,0.15700515]
[1723361382537,0.81055325,61193.0,61192.0,0.153752]
[1723361382742,0.81563338,61193.0,61192.0,0.153752]
[1723361385621,0.81055325,61193.0,61192.0,0.153752]
[1723361385837,0.81563337,61193.0,61192.0,0.153752]
[1723361387901,0.81055325,61193.0,61192.0,0.153752]
[1723361388104,0.8156332,61193.0,61192.0,0.153752]
[1723361389248,0.81563323,61193.0,61192.0,0.153752]
[1723361389778,0.81563322,61193.0,61192.0,0.153752]
[1723361390359,0.81561842,61193.0,61192.0,0.153752]
[1723361390741,1.04440242,61193.0,61192.0,0.153752]
[1723361392995,1.04440258,61193.0,61192.0,0.153752]
[1723361393409,1.03932245,61193.0,61192.0,0.153752]
[1723361393616,1.04440261,61193.0,61192.0,0.153752]
[1723361394802,0.97600433,61193.0,61192.0,0.153752]
[1723361395009,0.81562033,61193.0,61192.0,0.153752]
[1723361396588,0.81562037,61193.0,61192.0,0.153752]
[1723361397400,1.04440437,61193.0,61192.0,0.153752]
[1723361399534,0.6819402,61193.0,61192.0,0.153752]
[1723361399741,1.04440295,61193.0,61192.0,0.153752]
[1723361400275,1.03932275,61193.0,61192.0,0.153752]
[1723361400544,1.04440318,61193.0,61192.0,0.153752]
[1723361402992,1.04440591,61193.0,61192.0,0.153752]
[1723361403425,1.0444059,61193.0,61192.0,0.153752]
[1723361405398,1.19127493,61193.0,61192.0,0.153752]
[1723361405775,1.19127493,61193.0,61192.0,0.010152]
[1723361406007,1.42005893,61193.0,61192.0,0.010152]
[1723361406162,1.34597709,61193.0,61192.0,0.010152]
[1723361406338,1.85345063,61193.0,61192.0,0.010152]
[1723361406741,1.77558282,61193.0,61192.0,0.010152]
[1723361406986,1.85344952,61193.0,61192.0,0.010152]
[1723361407190,1.78504952,61193.0,61192.0,0.010152]
[1723361407393,1.85344952,61193.0,61192.0,0.010152]
[1723361407626,1.62466552,61193.0,61192.0,0.010152]
[1723361408216,1.6178924,61193.0,61192.0,0.010152]
[1723361408394,1.62466562,61193.0,61192.0,0.010152]
[1723361409199,1.62466562,61193.0,61192.0,0.087952]
[1723361410335,1.61789248,61193.0,61192.0,0.087952]
[1723361412623,1.55187874,61193.0,61192.0,0.087952]
[1723361413882,1.55187882,61193.0,61192.0,0.087952]
[1723361414088,1.5518669,61193.0,61192.0,0.087952]
[1723361414287,1.5467869,61193.0,61192.0,0.087952]
[1723361414541,1.55186692,61193.0,61192.0,0.087952]
[1723361415389,1.55186687,61193.0,61192.0,0.010152]
[1723361415804,1.61776468,61193.0,61192.0,0.010152]
[1723361416026,1.62453762,61193.0,61192.0,0.010152]
[1723361416228,1.61776468,61193.0,61192.0,0.010152]
[1723361416805,1.61772478,61193.0,61192.0,0.010152]
[1723361417018,1.55188804,61193.0,61192.0,0.010152]
[1723361417497,1.61780355,61193.0,61192.0,0.010152]
[1723361417718,1.61780325,61193.0,61192.0,0.010152]
[1723361418822,1.55188774,61193.0,61192.0,0.010152]
[1723361419049,1.61771437,61193.0,61192.0,0.010152]
[1723361419709,1.55188774,61193.0,61192.0,0.010152]
[1723361420223,1.6176921,61193.0,61192.0,0.010152]
[1723361420898,1.8464761,61193.0,61192.0,0.010152]
[1723361421136,1.85324898,61193.0,61192.0,0.010152]
[1723361421359,1.85324898,61193.0,61192.0,0.087952]
[1723361421583,1.8464761,61193.0,61192.0,0.152052]
[1723361421811,1.6176921,61193.0,61192.0,0.152052]
[1723361422940,1.61769215,61193.0,61192.0,0.152052]
[1723361423615,1.62446504,61193.0,61192.0,0.152052]
[1723361424084,1.61769215,61193.0,61192.0,0.152052]
[1723361424790,1.61754793,61193.0,61192.0,0.152052]
[1723361425524,1.62432072,61193.0,61192.0,0.152052]
[1723361425977,1.62433063,61193.0,61192.0,0.152052]
[1723361428146,1.61247812,61193.0,61192.0,0.152052]
[1723361428345,1.62432065,61193.0,61192.0,0.152052]
[1723361429574,1.61754777,61193.0,61192.0,0.152052]
[1723361429848,1.62432181,61193.0,61192.0,0.152052]
[1723361430713,1.62432448,61193.0,61192.0,0.152052]
[1723361431977,1.6243533,61193.0,61192.0,0.152052]
[1723361432201,1.61757651,61193.0,61192.0,0.152052]
[1723361432399,1.62435348,61193.0,61192.0,0.152052]
[1723361436098,1.62457213,61193.0,61192.0,0.152052]
[1723361436523,1.62449712,61193.0,61192.0,0.152052]
[1723361438047,1.61263462,61193.0,61192.0,0.152052]
[1723361438839,0.98414061,61193.0,61192.0,0.152052]
[1723361439045,0.47924959,61193.0,61192.0,0.152052]
[1723361439248,0.98672664,61193.0,61192.0,0.15525498]
[1723361439459,0.61953473,61193.0,61192.0,0.15525498]
[1723361439658,0.61444931,61193.0,61192.0,0.15525498]
[1723361439827,0.61443075,61193.0,61192.0,0.15525498]
[1723361440761,0.73390837,61193.0,61192.0,0.15525498]
[1723361440991,0.61951637,61193.0,61192.0,0.15525498]
[1723361441802,0.62460353,61193.0,61192.0,0.15525498]
[1723361442024,0.55620353,61193.0,61192.0,0.49843698]
[1723361442229,0.40913769,61193.0,61192.0,1.12676696]
[1723361442436,0.04158562,61193.0,61192.0,0.9910399]
[1723361442643,0.09061433,61193.0,61192.0,1.12675997]
[1723361443068,0.08361433,61193.0,61192.0,1.13536367]
[1723361443276,0.02658562,61193.0,61192.0,1.13636367]
[1723361443487,0.03358562,61193.0,61192.0,1.13636367]
[1723361443667,0.03358562,61193.0,61192.0,1.14036367]
[1723361443874,0.02658562,61193.0,61192.0,1.13936367]
[1723361444104,0.02758562,61193.0,61192.0,1.14436367]
[1723361444705,0.02658562,61193.0,61192.0,1.39115167]
[1723361444917,0.02658562,61193.0,61192.0,1.38715167]
[1723361445150,0.02758562,61193.0,61192.0,1.39215167]
[1723361445600,0.02658562,61193.0,61192.0,1.38715167]
[1723361445829,0.02758562,61193.0,61192.0,0.90408379]
[1723361446013,0.02758562,61193.0,61192.0,0.90407152]
[1723361446213,0.02758562,61193.0,61192.0,0.91007152]
[1723361446214,0.02858562,61193.0,61192.0,0.91007152]
[1723361446570,0.02758562,61193.0,61192.0,0.90407152]
[1723361447166,0.02658562,61193.0,61192.0,0.89807152]
[1723361447588,0.02758562,61193.0,61192.0,0.90707152]
[1723361448438,0.02858562,61193.0,61192.0,0.91207152]
[1723361449455,0.02858562,61193.0,61192.0,0.91207434]
[1723361449861,0.02858562,61193.0,61192.0,0.77636372]
[1723361450032,0.02858562,61193.0,61192.0,0.91207434]
[1723361450232,0.02858562,61193.0,61192.0,0.74825942]
[1723361451755,0.0235,61193.0,61192.0,0.74825942]
[1723361454465,0.0235,61193.0,61192.0,0.51947142]
[1723361454635,0.0235,61193.0,61192.0,0.3837608]
[1723361461657,0.0235,61193.0,61192.0,1.22271296]
[1723361462219,0.0235,61193.0,61192.0,0.99392496]
[1723361465713,0.0235,61193.0,61192.0,0.9120785]
[1723361466356,0.0235,61193.0,61192.0,0.91207501]
[1723361470347,0.0235,61193.0,61192.0,0.912075]
[1723361471617,0.0235,61193.0,61192.0,1.173863]
[1723361471843,0.0235,61193.0,61192.0,1.57183991]
[1723361472589,0.0235,61193.0,61192.0,1.40221849]
[1723361473024,0.0235,61193.0,61192.0,1.63100649]
[1723361473234,0.0235,61193.0,61192.0,1.80063051]
[1723361473665,0.0235,61193.0,61192.0,1.63100649]
[1723361474021,0.0235,61193.0,61192.0,1.64100649]
[1723361474498,0.0235,61193.0,61192.0,1.80062941]
[1723361474969,0.0235,61193.0,61192.0,1.64100649]
[1723361475649,0.0235,61193.0,61192.0,1.63100649]
[1723361475890,0.0235,61193.0,61192.0,1.80062885]
[1723361476241,0.0235,61193.0,61192.0,1.46049956]
[1723361476670,0.0235,61193.0,61192.0,1.80062805]
[1723361476882,0.0235,61193.0,61192.0,1.56315793]
[1723361477029,0.0235,61193.0,61192.0,1.63103154]
[1723361477232,0.0235,61193.0,61192.0,1.46048559]
[1723361481012,0.0235,61193.0,61192.0,1.25693972]
[1723361481229,0.0235,61193.0,61192.0,1.46048447]
[1723361481437,0.0235,61193.0,61192.0,1.64010275]
[1723361481634,0.0235,61193.0,61192.0,1.47048447]
[1723361481873,0.0235,61193.0,61192.0,1.64010335]
[1723361482463,0.0235,61193.0,61192.0,1.64010081]
[1723361483223,0.0235,61193.0,61192.0,1.86888881]
[1723361483454,0.000832,61208.0,61207.0,0.71663]
[1723361483759,0.000832,61208.0,61207.0,1.37199793]
[1723361483937,0.000832,61208.0,61207.0,1.37197162]
[1723361484137,0.000832,61208.0,61207.0,1.43980339]
[1723361484391,0.000832,61208.0,61207.0,1.37197162]
[1723361485151,0.000832,61208.0,61207.0,1.37297162]
[1723361485152,0.005832,61208.0,61207.0,1.37297162]
[1723361485266,0.006832,61208.0,61207.0,1.38497162]
[1723361485461,0.001832,61208.0,61207.0,1.38397162]
[1723361485692,0.001832,61208.0,61207.0,1.38897162]
[1723361485902,0.002832,61208.0,61207.0,1.38897162]
[1723361486597,0.002832,61208.0,61207.0,1.16023962]
[1723361487417,0.002832,61208.0,61207.0,1.17008506]
[1723361487620,0.002832,61208.0,61207.0,1.17008422]
[1723361487820,0.002832,61208.0,61207.0,1.39881622]
[1723361488460,0.002832,61208.0,61207.0,1.38681622]
[1723361488670,0.000832,61208.0,61207.0,1.38181622]
[1723361488872,0.000832,61208.0,61207.0,1.40981622]
[1723361489210,0.001832,61208.0,61207.0,1.40981622]
[1723361491121,0.001832,61208.0,61207.0,1.18108422]
[1723361491328,0.001832,61208.0,61207.0,1.181081]
[1723361491727,0.001832,61208.0,61207.0,1.409813]
[1723361491938,0.001832,61208.0,61207.0,1.419813]
[1723361493884,0.001832,61208.0,61207.0,1.191081]
[1723361494299,0.001832,61208.0,61207.0,1.419813]
[1723361494932,0.001832,61208.0,61207.0,1.191081]
[1723361495170,0.001832,61208.0,61207.0,1.05541741]
[1723361495394,0.001832,61208.0,61207.0,1.19108154]
[1723361496511,0.001832,61208.0,61207.0,1.41981354]
[1723361496721,0.001832,61208.0,61207.0,1.19108154]
[1723361496922,0.001832,61208.0,61207.0,1.41981354]
[1723361499111,0.001832,61208.0,61207.0,1.4198128]
[1723361500115,0.001832,61208.0,61207.0,1.1910808]
[1723361500549,0.001832,61208.0,61207.0,1.4882128]
[1723361500749,0.001832,61208.0,61207.0,1.2594808]
[1723361500964,0.001832,61208.0,61207.0,1.4882128]
[1723361501194,0.001832,61208.0,61207.0,1.2594808]
[1723361501593,0.001832,61208.0,61207.0,1.12381741]
[1723361501792,0.001832,61208.0,61207.0,1.25948032]
[1723361502832,0.001832,61208.0,61207.0,1.12381741]
[1723361503040,0.001832,61208.0,61207.0,1.25948022]
[1723361503475,0.001832,61208.0,61207.0,1.48821117]
[1723361503658,0.001832,61208.0,61207.0,1.25947917]
[1723361503877,0.001832,61208.0,61207.0,1.50821117]
[1723361504085,0.001832,61208.0,61207.0,1.48821117]
[1723361504754,0.001832,61208.0,61207.0,1.48821099]
[1723361506281,0.001832,61208.0,61207.0,1.19107899]
[1723361507026,0.001832,61208.0,61207.0,1.41981099]
[1723361507707,0.001832,61208.0,61207.0,1.19107899]
[1723361508524,0.001832,61208.0,61207.0,1.18107899]
[1723361508733,0.001832,61208.0,61207.0,1.01327899]
[1723361510194,0.001832,61208.0,61207.0,1.01328483]
[1723361511455,0.001832,61208.0,61207.0,1.19038483]
[1723361511662,0.001832,61208.0,61207.0,1.21338483]
[1723361511864,0.001832,61208.0,61207.0,1.50994802]
[1723361512523,0.001832,61208.0,61207.0,1.65952517]
[1723361513330,0.001832,61208.0,61207.0,1.83060522]
[1723361513538,0.001832,61208.0,61207.0,1.30644941]
[1723361513744,0.001832,61208.0,61207.0,1.85172571]
[1723361514157,0.001832,61208.0,61207.0,1.66214739]
[1723361514373,0.001832,61208.0,61207.0,1.8517241]
[1723361514582,0.001832,61208.0,61207.0,1.8317241]
[1723361515212,0.001832,61208.0,61207.0,1.83172474]
[1723361516112,0.001832,61208.0,61207.0,1.82172474]
[1723361516320,0.001832,61208.0,61207.0,1.8118793]
[1723361516519,0.001832,61208.0,61207.0,1.8117117]
[1723361516702,0.001832,61208.0,61207.0,1.5829797]
[1723361517052,0.001832,61208.0,61207.0,1.8117117]
[1723361517257,0.001832,61208.0,61207.0,1.43618555]
[1723361517472,0.001832,61208.0,61207.0,1.81164309]
[1723361518020,0.001832,61208.0,61207.0,1.82164309]
[1723361518287,0.001832,61208.0,61207.0,1.81164309]
[1723361519955,0.001832,61208.0,61207.0,1.82164309]
[1723361520759,0.001832,61208.0,61207.0,1.58291116]
[1723361521246,0.001832,61208.0,61207.0,1.82164316]
[1723361521422,0.001832,61208.0,61207.0,1.64206134]
[1723361521597,0.001832,61208.0,61207.0,1.65206134]
[1723361523209,0.001832,61208.0,61207.0,1.42332934]
[1723361523704,0.001832,61208.0,61207.0,1.65206273]
[1723361524310,0.001832,61208.0,61207.0,1.65240881]
[1723361525424,0.001832,61208.0,61207.0,1.27660397]
[1723361525631,0.001832,61208.0,61207.0,1.65239569]
[1723361527460,0.001832,61208.0,61207.0,1.42426056]
[1723361527672,0.001832,61208.0,61207.0,1.65299256]
[1723361530095,0.001832,61208.0,61207.0,1.82257602]
[1723361530623,0.001832,61208.0,61207.0,2.10025202]
[1723361530827,0.001832,61208.0,61207.0,2.10123919]
[1723361531615,0.001832,61208.0,61207.0,3.13410719]
[1723361532581,0.001832,61208.0,61207.0,3.36283919]
[1723361532756,0.001832,61208.0,61207.0,3.13420038]
[1723361533168,0.001832,61208.0,61207.0,3.36293238]
[1723361533904,0.001832,61208.0,61207.0,3.13420038]
[1723361534317,0.001832,61208.0,61207.0,3.1343199]
[1723361534523,0.001832,61208.0,61207.0,3.31401471]
[1723361534916,0.001832,61208.0,61207.0,3.31414342]
[1723361536570,0.001832,61208.0,61207.0,3.36318061]
[1723361537321,0.001832,61208.0,61207.0,3.36317398]
[1723361538384,0.001832,61208.0,61207.0,3.13444198]
[1723361538609,0.001832,61208.0,61207.0,3.31414342]
[1723361538839,0.001832,61208.0,61207.0,3.08541142]
[1723361539039,0.001832,61208.0,61207.0,3.13444198]
[1723361539270,0.001832,61208.0,61207.0,3.08541142]
[1723361539479,0.001832,61208.0,61207.0,3.31414342]
[1723361539691,0.001832,61208.0,61207.0,3.08541142]
[1723361541266,0.001832,61208.0,61207.0,3.24631405]
[1723361541508,0.001832,61208.0,61207.0,3.31392857]
[1723361541955,0.001832,61208.0,61207.0,3.387452]
[1723361542171,0.001832,61208.0,61207.0,3.51418742]
[1723361542404,0.001832,61208.0,61207.0,3.41614347]
[1723361542621,0.001832,61208.0,61207.0,3.31392857]
[1723361542820,0.001832,61208.0,61207.0,3.51418564]
[1723361543262,0.001832,61208.0,61207.0,3.41614169]
[1723361543672,0.001832,61208.0,61207.0,3.51786911]
[1723361543821,0.001832,61208.0,61207.0,3.74660111]
[1723361544293,0.001832,61208.0,61207.0,3.50386911]
[1723361544498,0.001832,61208.0,61207.0,3.52586911]
[1723361544914,0.000832,61208.0,61207.0,3.03270559]
[1723361545125,0.000832,61208.0,61207.0,3.40995454]
[1723361545323,0.000832,61208.0,61207.0,3.51349188]
[1723361545543,0.001832,61208.0,61207.0,3.14712521]
[1723361545752,0.001832,61208.0,61207.0,3.54620755]
[1723361545953,0.001832,61208.0,61207.0,3.56020755]
[1723361546158,0.000832,61208.0,61207.0,3.52420755]
[1723361546350,0.001832,61208.0,61207.0,3.78893955]
[1723361546586,1e-06,61208.0,61207.0,4.22928125]
[1723361546792,1e-06,61208.0,61207.0,4.00054925]
[1723361546978,0.00025631,61219.0,61218.0,1.271005]
[1723361547126,0.00025631,61219.0,61218.0,2.28252889]
[1723361547535,0.00025631,61219.0,61218.0,2.18163109]
[1723361548566,0.00025631,61219.0,61218.0,2.15713316]
[1723361548931,0.00025631,61219.0,61218.0,2.13513316]
[1723361549419,0.00025631,61219.0,61218.0,2.14913316]
[1723361549739,0.00025631,61219.0,61218.0,1.92661437]
[1723361549935,0.00025631,61219.0,61218.0,2.10023578]
[1723361550154,0.00025631,61219.0,61218.0,3.18821437]
[1723361550371,0.00025631,61219.0,61218.0,3.20221437]
[1723361551195,0.00025631,61219.0,61218.0,3.36183578]
[1723361551408,0.00025631,61219.0,61218.0,3.18821437]
[1723361551620,0.00025631,61219.0,61218.0,3.20221437]
[1723361551900,0.00025631,61219.0,61218.0,3.18821437]
[1723361552108,0.00025631,61219.0,61218.0,3.20217594]
[1723361552895,0.00025631,61219.0,61218.0,3.37494929]
[1723361553521,0.00025631,61219.0,61218.0,3.20217594]
[1723361554324,0.00025631,61219.0,61218.0,3.2119342]
[1723361554748,0.00025631,61219.0,61218.0,3.1655342]
[1723361554951,0.00025631,61219.0,61218.0,3.0704342]
[1723361555291,0.00025631,61219.0,61218.0,3.0904342]
[1723361555499,0.00025631,61219.0,61218.0,3.0704342]
[1723361555912,0.00025631,61219.0,61218.0,3.07044781]
[1723361556304,0.00025631,61219.0,61218.0,2.69749419]
[1723361556468,0.00025631,61219.0,61218.0,3.23998036]
[1723361557567,0.00025631,61219.0,61218.0,3.23998035]
[1723361557796,0.00025631,61219.0,61218.0,3.07045342]
[1723361558211,0.00025631,61219.0,61218.0,2.74036342]